bitfinex/quotes_ETHUSD_20250623
["timestamp","ask_amount","ask_price","bid_price","bid_amount"]
[1750692243631,19.30729934,2287.0,2286.9,9.255]
[1750692244568,19.30729934,2287.0,2286.7,4.37299908]
[1750692244862,7.76,2287.1,2286.6,5.16808112]
[1750692244863,9.30729934,2286.8,2286.6,5.16808112]
[1750692245166,9.30729934,2286.8,2286.7,9.255]
[1750692245343,19.30729934,2287.0,2286.7,13.62811409]
[1750692246054,19.30729934,2287.0,2286.7,13.62804068]
[1750692246253,19.30729934,2287.0,2286.7,9.255]
[1750692246444,9.30729934,2286.8,2286.7,9.255]
[1750692246645,21.23802927,2286.8,2286.3,0.8282]
[1750692246973,9.30729934,2286.4,2286.3,6.32187919]
[1750692247183,9.30729934,2286.6,2286.3,13.62787919]
[1750692247466,9.30729934,2286.6,2286.3,6.32187919]
[1750692247671,9.30729934,2286.6,2286.4,7.306]
[1750692248232,1.04821318,2286.7,2286.5,4.37337191]
[1750692248563,19.30729934,2286.8,2286.6,7.306]
[1750692248735,10.0,2286.8,2286.6,7.306]
[1750692248935,11.04846546,2287.0,2286.7,4.37300778]
[1750692249136,1.04846546,2287.0,2286.9,5.17453164]
[1750692249347,7.76,2287.1,2287.0,4.37254044]
[1750692249583,7.76,2287.1,2287.0,11.67854044]
[1750692250545,19.52422927,2287.1,2286.5,2.7323]
[1750692250741,10.12969934,2286.6,2286.5,1.948]
[1750692251348,10.0,2286.7,2286.5,6.32142096]
[1750692251543,11.04812445,2286.7,2286.5,6.32142096]
[1750692251818,11.04812445,2286.7,2286.6,7.306]
[1750692253279,10.0,2286.7,2286.6,7.306]
[1750692254357,0.798,2286.9,2286.6,7.306]
[1750692254563,1.84623821,2286.9,2286.6,7.306]
[1750692254781,1.04823821,2286.8,2286.6,7.306]
[1750692255087,17.76,2286.7,2286.6,7.306]
[1750692255285,32.45978066,2286.7,2286.2,15.70376003]
[1750692255464,11.04823821,2286.6,2286.3,9.252]
[1750692256347,10.7783,2286.4,2286.3,1.946]
[1750692256552,10.0,2286.4,2286.3,9.252]
[1750692257760,10.0,2286.4,2286.3,13.62587919]
[1750692259085,33.18754245,2286.4,2286.3,7.306]
[1750692259522,34.23544843,2286.4,2286.3,7.306]
[1750692259894,0.7876,2286.5,2286.3,7.306]
[1750692260219,11.04758544,2286.6,2286.3,7.306]
[1750692260579,11.04758544,2286.6,2286.3,11.67987373]
[1750692260784,11.04758544,2286.6,2286.4,4.37358356]
[1750692261027,1.04758544,2286.6,2286.5,7.306]
[1750692261201,0.7996,2286.7,2286.5,7.306]
[1750692263924,1.85588544,2286.9,2286.5,7.306]
[1750692264226,10.0,2286.8,2286.5,7.306]
[1750692264436,11.04758544,2286.8,2286.5,7.306]
[1750692265755,10.8001,2286.6,2286.5,7.306]
[1750692266048,11.84768544,2286.6,2286.5,7.306]
[1750692266261,11.04758544,2286.6,2286.5,7.306]
[1750692266558,10.0,2286.6,2286.5,7.306]
[1750692266851,11.04714077,2286.6,2286.5,7.306]
[1750692269108,10.0,2286.8,2286.5,7.306]
[1750692269312,11.04715099,2286.9,2286.6,4.37328444]
[1750692270019,1.04715099,2286.9,2286.7,6.31902008]
[1750692270220,9.59845099,2287.2,2286.8,4.37292286]
[1750692270424,9.59845099,2287.2,2286.8,11.67892286]
[1750692270425,10.0,2287.1,2286.8,11.67892286]
[1750692270635,11.04715099,2287.1,2286.8,7.306]
[1750692270839,1.04715099,2287.1,2286.8,7.306]
[1750692271025,11.04715099,2287.1,2286.8,7.306]
[1750692274619,1.04715099,2287.0,2286.8,7.306]
[1750692274861,11.04715099,2287.1,2286.8,7.306]
[1750692275451,10.0,2286.9,2286.8,7.306]
[1750692275662,11.04715099,2286.9,2286.8,7.306]
[1750692277641,1.04715099,2286.9,2286.8,7.306]
[1750692277829,1.04715099,2287.0,2286.8,7.306]
[1750692278024,16.65853854,2287.0,2286.7,1.946]
[1750692278267,1.04715099,2286.9,2286.7,1.946]
[1750692280976,1.04715099,2286.9,2286.8,4.37292286]
[1750692281179,1.04841205,2287.0,2286.9,5.18202263]
[1750692281339,11.04841205,2287.1,2286.9,5.18202263]
[1750692281678,17.76,2287.0,2286.9,12.48602263]
[1750692281984,17.76,2287.0,2286.9,8.1133]
[1750692282134,18.80825431,2287.0,2286.9,7.304]
[1750692282337,28.11397272,2287.0,2286.9,7.304]
[1750692283140,17.76,2287.0,2286.9,7.304]
[1750692283350,17.76,2287.0,2286.9,11.67673164]
[1750692283552,17.76,2287.0,2286.9,7.304]
[1750692283750,28.11374818,2287.0,2286.9,7.304]
[1750692284678,17.76,2287.0,2286.9,11.67673164]
[1750692285984,7.76,2287.0,2286.9,12.47773164]
[1750692286887,8.80755494,2287.7,2287.5,4.37158469]
[1750692287048,8.80755494,2287.7,2287.6,7.303]
[1750692287049,18.80755494,2287.7,2287.6,7.303]
[1750692287250,8.80755494,2287.7,2287.6,7.303]
[1750692287659,18.80755494,2287.7,2287.6,7.303]
[1750692288160,18.80755494,2287.7,2287.2,5.13886228]
[1750692288161,21.70074228,2287.7,2287.2,0.7668]
[1750692288486,1.04755494,2287.6,2287.3,9.246]
[1750692288687,0.7532,2287.5,2287.0,0.7896]
[1750692288852,0.7532,2287.5,2287.1,9.246]
[1750692288853,22.15579907,2287.5,2287.1,9.246]
[1750692289054,1.04755494,2287.4,2287.2,1.944]
[1750692289989,1.04755494,2287.4,2287.2,9.246]
[1750692291306,1.04755494,2287.4,2287.2,9.245]
[1750692292301,1.04755494,2287.4,2287.2,13.61707429]
[1750692292505,8.80755494,2287.5,2287.3,4.37196694]
[1750692292708,8.80755494,2287.5,2287.2,9.245]
[1750692293581,8.80755494,2287.5,2287.2,13.61712907]
[1750692295005,8.80755494,2287.5,2287.2,9.245]
[1750692295382,10.77122043,2287.5,2287.2,9.245]
[1750692295571,10.77122043,2287.5,2287.2,13.61714349]
[1750692295771,8.80755494,2287.5,2287.2,13.61714349]
[1750692296102,8.80755494,2287.5,2287.2,9.245]
[1750692296267,7.76,2287.5,2287.4,0.8179]
[1750692296668,18.5282,2287.5,2287.4,7.301]
[1750692296911,19.57453259,2287.5,2287.4,7.301]
[1750692297204,18.5282,2287.5,2287.4,7.301]
[1750692298017,19.57464327,2287.5,2287.4,7.301]
[1750692298196,19.57465929,2287.5,2287.4,7.301]
[1750692299191,21.53212522,2287.5,2287.4,7.301]
[1750692299537,21.53212522,2287.5,2287.2,9.244]
[1750692299538,35.17472429,2287.5,2287.2,9.244]
[1750692299677,1.04645929,2287.4,2287.2,9.244]
[1750692300322,1.04645929,2287.4,2287.3,4.37196694]
[1750692300617,17.76,2287.5,2287.2,13.61606376]
[1750692300793,17.76,2287.5,2287.3,4.37192716]
[1750692301118,17.76,2287.5,2287.2,14.43536376]
[1750692301413,17.76,2287.5,2287.2,10.0633]
[1750692301624,17.76,2287.5,2287.3,4.37186107]
[1750692302108,17.76,2287.5,2287.4,4.37177581]
[1750692302288,8.80678785,2287.5,2287.4,4.37177581]
[1750692302494,7.76,2287.5,2287.2,14.43537888]
[1750692303019,7.76,2287.5,2287.2,14.43528696]
[1750692303325,7.76,2287.5,2287.3,4.37196309]
[1750692303720,7.76,2287.5,2287.2,14.43538306]
[1750692304020,7.76,2287.5,2287.3,4.37194101]
[1750692304839,7.76,2288.1,2288.0,4.37062937]
[1750692305023,7.76,2288.3,2288.2,4.37024735]
[1750692305208,7.76,2288.3,2288.1,0.7842]
[1750692305409,7.76,2288.3,2288.1,5.15447795]
[1750692305626,17.76,2288.3,2288.2,4.37024735]
[1750692306011,7.76,2288.9,2288.8,4.36910171]
[1750692306234,0.7853,2289.4,2288.8,9.241]
[1750692306440,2.00434303,2289.3,2288.9,4.36882762]
[1750692306616,0.95905846,2289.3,2288.9,4.36882762]
[1750692306817,0.95905846,2289.3,2289.1,4.36842562]
[1750692307123,0.95905846,2289.3,2289.2,7.298]
[1750692307428,7.76,2289.4,2289.2,11.66632753]
[1750692307626,8.5453,2289.6,2289.3,4.36801817]
[1750692307809,7.76,2289.6,2289.3,6.31101817]
[1750692308013,0.44533313,2290.0,2289.6,4.36745185]
[1750692308213,0.44533313,2290.0,2289.7,7.298]
[1750692308538,10.0,2290.1,2289.8,6.31009299]
[1750692308836,11.85111,2290.1,2289.8,1.943]
[1750692309241,1.85111,2290.1,2289.8,1.943]
[1750692309535,8.5111,2290.2,2289.8,1.943]
[1750692309758,10.0,2290.1,2289.8,1.943]
[1750692310532,8.5111,2290.2,2289.8,1.943]
[1750692310732,8.5111,2290.2,2289.8,6.31010737]
[1750692311053,0.7511,2290.2,2289.8,1.943]
[1750692311255,10.0,2290.1,2289.8,1.943]
[1750692311652,23.64259907,2290.1,2289.8,1.943]
[1750692312224,23.64259907,2290.1,2289.4,0.8067]
[1750692312419,10.0,2289.8,2289.7,1.943]
[1750692312760,10.0,2289.8,2289.6,9.238]
[1750692313262,10.0,2289.7,2289.1,0.7783]
[1750692313459,13.64259907,2289.5,2289.0,9.238]
[1750692313659,0.55,2289.4,2289.0,9.238]
[1750692313846,10.55,2289.4,2289.0,9.238]
[1750692314248,10.0,2289.4,2289.0,9.238]
[1750692316157,10.0,2289.4,2289.0,13.6066859]
[1750692316664,10.0,2289.4,2289.0,13.60662819]
[1750692316829,10.0,2289.4,2289.0,9.238]
[1750692317762,10.0,2289.4,2289.0,13.60671721]
[1750692317961,10.7589,2289.7,2289.0,9.238]
[1750692318164,10.0,2289.4,2289.0,13.60655689]
[1750692319063,10.0,2289.4,2289.0,9.238]
[1750692319367,10.0,2289.4,2288.9,4.36890556]
[1750692319523,10.0,2289.4,2289.1,7.294]
[1750692319726,12.36425991,2289.4,2289.1,7.294]
[1750692320229,12.36425991,2289.4,2289.1,11.66252481]
[1750692320425,12.36425991,2289.4,2289.1,7.294]
[1750692320625,23.64259907,2289.2,2289.1,7.294]
[1750692321053,23.64259907,2289.2,2289.1,4.36852911]
[1750692321255,10.0,2289.1,2288.9,7.293]
[1750692321457,10.0,2289.1,2289.0,4.36871996]
[1750692322283,0.8191,2289.3,2289.0,4.36871996]
[1750692322565,10.0,2289.4,2289.1,4.36839761]
[1750692322742,10.0,2289.4,2289.0,4.36861274]
[1750692322943,11.60402494,2289.4,2289.0,4.36861274]
[1750692323367,11.60402494,2289.4,2289.1,4.36850603]
[1750692323669,11.60402494,2289.4,2288.9,7.293]
[1750692323856,10.0,2289.4,2288.9,7.293]
[1750692324158,10.0,2289.1,2288.8,1.941]
[1750692324361,10.0,2289.1,2288.9,7.293]
[1750692324890,0.8195,2289.0,2288.9,7.293]
[1750692325188,0.8195,2289.0,2288.8,1.941]
[1750692325385,23.64259907,2288.9,2288.8,9.234]
[1750692325591,23.64259907,2288.9,2288.5,10.504]
[1750692325592,10.0,2288.8,2288.5,10.504]
[1750692325750,10.0,2288.8,2288.7,7.293]
[1750692325951,17.76,2288.8,2288.6,1.941]
[1750692326354,0.55,2288.7,2288.6,1.941]
[1750692326558,22.28495991,2288.7,2288.6,1.941]
[1750692327083,10.0,2288.6,2288.2,1.941]
[1750692327268,0.7786,2288.1,2287.7,4.37103785]
[1750692327468,10.0,2287.9,2287.8,7.298]
[1750692329567,10.55,2287.9,2287.8,7.298]
[1750692329789,13.04711991,2287.9,2287.8,7.298]
[1750692330112,10.0,2287.9,2287.8,7.298]
[1750692331059,10.0,2287.9,2287.7,1.941]
[1750692331561,10.0,2287.9,2287.1,10.498]
[1750692331562,1.349,2287.8,2287.3,1.941]
[1750692331755,10.0,2287.5,2287.3,1.941]
[1750692331976,12.36425991,2287.5,2287.3,9.235]
[1750692332205,12.36425991,2287.5,2286.5,4.37331593]
[1750692332206,0.55,2287.3,2287.0,1.941]
[1750692332369,10.0,2287.1,2287.0,7.294]
[1750692332573,0.55,2287.0,2286.5,5.15358691]
[1750692332818,0.55,2287.0,2286.6,9.235]
[1750692333165,10.0,2287.1,2286.6,9.235]
[1750692333521,10.0,2287.1,2286.2,10.93598986]
[1750692333522,11.3748,2286.8,2286.3,0.7675]
[1750692333817,0.55,2286.7,2286.6,1.941]
[1750692333965,14.19259907,2286.7,2286.6,1.941]
[1750692334169,13.64259907,2287.0,2286.6,1.941]
[1750692334715,0.55,2286.9,2286.6,9.237]
[1750692334920,13.64259907,2286.7,2286.6,9.237]
[1750692335121,13.64259907,2286.7,2286.2,14.87296815]
[1750692335290,0.8331,2286.6,2286.2,12.44]
[1750692335491,13.64259907,2286.4,2286.3,7.296]
[1750692336005,13.64259907,2286.4,2286.2,24.11506054]
[1750692336184,13.64259907,2286.4,2286.2,12.44]
[1750692336379,13.64259907,2286.4,2286.2,19.742]
[1750692337197,10.0,2286.3,2286.2,24.11606606]
[1750692337520,10.0,2286.3,2286.2,19.742]
[1750692338732,10.0,2286.3,2286.2,19.642]
[1750692339081,10.0,2286.3,2286.2,19.639]
[1750692339718,10.0,2286.3,2286.2,9.24]
[1750692340888,17.76,2286.3,2286.2,9.24]
[1750692341295,18.33450908,2286.3,2286.2,1.941]
[1750692343590,18.33450908,2286.3,2285.5,0.7833]
[1750692343591,1.3383,2286.2,2285.8,1.942]
[1750692343801,13.64259907,2285.9,2285.8,9.242]
[1750692344003,17.76,2285.9,2285.8,13.61683594]
[1750692344222,17.76,2285.9,2285.8,9.242]
[1750692344522,17.76,2285.9,2285.4,0.25763227]
[1750692344723,0.55,2285.8,2285.5,7.3]
[1750692345809,17.76,2285.9,2285.5,7.3]
[1750692346315,17.76,2285.9,2285.5,11.67540032]
[1750692346824,17.76,2285.9,2285.5,7.3]
[1750692347025,21.09924549,2285.9,2285.5,7.3]
[1750692347225,21.09924549,2285.9,2285.4,0.25763227]
[1750692347226,0.55,2285.6,2285.4,0.25763227]
[1750692347429,0.55,2285.2,2285.0,1.943]
[1750692347652,10.0,2284.9,2284.7,7.308]
[1750692347791,17.76,2284.9,2284.7,7.308]
[1750692348301,17.76,2284.9,2284.5,4.59853877]
[1750692348302,0.7916,2284.8,2284.5,0.2213009]
[1750692348502,10.55,2284.7,2284.5,0.2213009]
[1750692348804,10.0,2284.7,2284.5,0.2213009]
[1750692348989,10.0,2284.7,2284.5,4.59854512]
[1750692349321,10.0,2284.7,2284.5,0.2213009]
[1750692349527,7.76,2284.9,2284.5,0.2213009]
[1750692349729,7.76,2284.9,2284.7,4.37684671]
[1750692349937,0.7916,2285.1,2284.8,4.37661236]
[1750692350094,10.7916,2285.1,2284.8,4.37661236]
[1750692350289,7.76,2286.0,2285.0,4.37636761]
[1750692350290,10.55,2285.3,2285.0,4.37636761]
[1750692350534,10.0,2285.3,2285.0,9.273]
[1750692350903,23.64259907,2285.1,2285.0,9.273]
[1750692351109,23.64259907,2285.1,2284.9,9.274]
[1750692351431,23.64259907,2285.1,2284.8,9.275]
[1750692351638,10.0,2285.0,2284.9,4.37652278]
[1750692352439,12.44341991,2285.3,2285.0,4.37618403]
[1750692352735,10.0,2285.3,2285.1,4.37605314]
[1750692352938,13.64259907,2285.7,2285.3,4.37566117]
[1750692353139,10.0,2285.6,2285.4,13.65260038]
[1750692353299,14.41369907,2286.0,2285.6,4.37512635]
[1750692353503,15.87704137,2286.0,2285.6,4.37521876]
[1750692353724,15.87704137,2286.0,2285.5,7.334]
[1750692353725,10.0,2285.9,2285.5,11.70931982]
[1750692354102,15.87704137,2286.0,2285.5,11.70931982]
[1750692354298,15.87704137,2286.0,2285.5,7.334]
[1750692354499,13.64259907,2285.7,2284.9,4.37642086]
[1750692354728,10.0,2285.2,2284.9,9.276]
[1750692354931,10.0,2285.2,2284.9,13.65252826]
[1750692355157,10.0,2285.2,2284.9,9.276]
[1750692356366,10.55,2285.3,2284.9,9.276]
[1750692356662,10.55,2285.3,2284.9,9.281]
[1750692356864,2.14876809,2285.2,2284.9,9.281]
[1750692357964,10.0,2285.0,2284.5,0.2213009]
[1750692358177,10.0,2285.0,2284.6,9.277]
[1750692358543,10.93768085,2284.8,2284.6,9.277]
[1750692358732,10.0,2284.7,2284.5,0.2213009]
[1750692358937,12.14876809,2284.7,2284.5,9.4963009]
[1750692359464,0.7649,2284.6,2284.5,2.1643009]
[1750692360091,0.7649,2284.6,2284.5,0.2213009]
[1750692360305,1.3149,2284.6,2284.5,0.2213009]
[1750692360582,2.354426,2284.6,2284.5,0.2213009]
[1750692360874,4.89851349,2284.6,2284.5,0.2213009]
[1750692361232,14.89851349,2284.6,2284.5,0.2213009]
[1750692362061,15.34226365,2284.6,2284.5,0.2213009]
[1750692365366,10.55,2284.5,2283.5,10.515]
[1750692365594,11.3353,2284.0,2283.3,0.7953]
[1750692365809,11.48768085,2283.8,2283.3,0.7953]
[1750692365963,10.55,2283.4,2282.8,10.517]
[1750692366306,10.55,2283.4,2282.7,9.279]
[1750692366307,10.55,2283.1,2282.7,9.279]
[1750692366596,10.55,2283.1,2282.7,1.944]
[1750692366801,0.7942,2283.0,2282.4,4.38121265]
[1750692367010,10.0,2282.8,2282.3,1.944]
[1750692367307,0.55,2282.7,2282.3,1.944]
[1750692367690,0.55,2282.7,2282.2,8.3162009]
[1750692367691,0.7942,2282.6,2282.2,0.2213009]
[1750692367902,10.0,2282.4,2282.2,0.2213009]
[1750692368267,10.0,2282.4,2282.2,4.60300052]
[1750692368686,10.0,2282.4,2282.2,0.2213009]
[1750692369419,10.0,2282.6,2282.3,0.7622]
[1750692369595,10.93768085,2283.1,2282.4,4.38123412]
[1750692369902,0.55,2283.0,2282.5,4.38115242]
[1750692370111,0.55,2283.0,2282.4,4.38125009]
[1750692370294,0.55,2283.0,2282.3,0.7622]
[1750692370491,1.14876808,2282.9,2282.3,0.7622]
[1750692370808,1.14876808,2282.9,2282.3,5.14365292]
[1750692371014,10.93768085,2282.8,2282.3,0.7622]
[1750692371338,10.93768085,2282.8,2282.2,13.90393377]
[1750692371339,0.55,2282.7,2282.2,9.5223009]
[1750692371466,10.93768085,2282.5,2282.2,9.5223009]
[1750692371670,10.93768085,2282.5,2282.2,0.2213009]
[1750692371671,10.55,2282.4,2282.2,0.2213009]
[1750692371976,12.16822894,2282.5,2282.2,0.2213009]
[1750692371977,11.23054809,2282.5,2282.2,0.2213009]
[1750692372172,10.55,2282.7,2282.4,4.38135296]
[1750692372476,1.14876808,2282.9,2282.5,4.38112466]
[1750692372678,0.8094,2283.2,2282.8,4.3805383]
[1750692372892,1.03561927,2283.3,2282.6,1.945]
[1750692373107,1.03561927,2283.3,2282.7,4.3807752]
[1750692373294,1.03561927,2283.3,2282.8,4.38057003]
[1750692373477,10.93768085,2283.4,2282.8,4.38057003]
[1750692373478,10.93768085,2283.4,2282.8,4.38040037]
[1750692373806,12.23427131,2283.3,2282.7,4.38069455]
[1750692374011,10.93768085,2283.1,2282.6,1.945]
[1750692374217,10.0,2282.7,2282.6,1.945]
[1750692374369,0.55,2282.9,2282.6,1.945]
[1750692374669,0.55,2283.1,2282.6,6.32588481]
[1750692374871,0.55,2283.1,2282.7,4.38067262]
[1750692375101,0.55,2283.1,2282.6,6.32588481]
[1750692375271,0.55,2283.1,2282.6,6.32594939]
[1750692375469,0.55,2283.1,2282.7,4.38076262]
[1750692375710,7.76,2283.4,2283.1,4.379932]
[1750692375914,11.03615509,2283.5,2282.8,4.38040074]
[1750692376207,11.03615509,2283.5,2283.0,4.38019329]
[1750692376398,14.14144868,2283.5,2282.9,4.38025773]
[1750692376595,13.10529359,2283.5,2283.0,4.38016226]
[1750692376796,3.10529359,2283.5,2283.0,4.38016226]
[1750692376986,10.0,2283.5,2283.1,4.37998776]
[1750692377184,11.37884635,2283.9,2283.2,0.7582]
[1750692377398,11.37884635,2283.9,2283.2,5.13800341]
[1750692377399,1.03657005,2283.8,2283.2,5.13800341]
[1750692377598,1.03657005,2283.8,2283.4,4.37931924]
[1750692377809,11.03657005,2283.8,2283.2,5.13800318]
[1750692378191,11.03657005,2283.8,2283.3,4.37961783]
[1750692378397,11.33664593,2283.8,2283.3,4.37961783]
[1750692378617,0.30007588,2283.7,2283.2,0.7582]
[1750692378805,1.33664593,2283.7,2283.2,5.13801259]
[1750692379486,1.33664593,2283.7,2283.2,0.7582]
[1750692379691,0.30007588,2283.7,2283.3,4.37950242]
[1750692379911,0.30007588,2283.7,2283.3,4.37951807]
[1750692380117,0.30007588,2283.7,2283.4,4.37942096]
[1750692380422,0.30007588,2283.7,2283.4,4.37926102]
[1750692380625,0.30007588,2283.7,2283.6,4.37905062]
[1750692380811,10.93768085,2283.8,2283.3,4.37951278]
[1750692380986,10.0,2283.7,2283.4,4.37942119]
[1750692381385,10.0,2283.7,2283.5,4.3792227]
[1750692381690,10.0,2283.7,2283.4,4.37932066]
[1750692381892,10.0,2283.7,2283.2,0.7582]
[1750692382092,12.14876809,2283.7,2283.3,1.982]
[1750692382327,10.93768085,2283.8,2283.3,1.982]
[1750692382328,20.93768085,2284.1,2283.3,1.982]
[1750692382631,1.58704519,2284.0,2283.4,4.37932725]
[1750692383935,1.58704519,2284.0,2283.4,4.37931362]
[1750692384136,1.03704519,2284.0,2283.5,4.37909981]
[1750692384353,1.03704519,2284.0,2283.3,1.982]
[1750692384639,10.0,2283.9,2283.3,6.36160596]
[1750692384969,11.03704519,2283.9,2283.3,6.36160596]
[1750692385868,11.03704519,2283.9,2283.3,1.982]
[1750692386161,1.03704519,2283.9,2283.3,6.36160704]
[1750692386479,11.03704519,2284.0,2283.7,4.37881273]
[1750692386645,11.03704519,2284.0,2283.5,5.18774239]
[1750692386646,1.03704519,2284.0,2283.5,5.18774239]
[1750692386832,11.04159142,2284.3,2283.9,4.37845099]
[1750692387028,14.09779865,2284.3,2283.9,4.37845099]
[1750692387271,1.04159142,2284.2,2283.7,7.349]
[1750692387477,11.04159142,2284.3,2283.8,6.36059173]
[1750692387651,11.04159142,2284.3,2283.8,1.982]
[1750692387955,11.04159142,2284.3,2283.6,4.37896081]
[1750692388152,10.0,2283.7,2283.3,1.982]
[1750692388350,10.0,2283.7,2283.3,10.74108863]
[1750692388640,10.55,2284.0,2283.5,4.37923211]
[1750692388839,13.87201594,2284.0,2283.3,1.982]
[1750692389073,1.04310785,2283.9,2283.4,4.37930093]
[1750692389781,1.04310785,2283.9,2283.3,6.36154162]
[1750692389986,1.04310785,2283.9,2283.4,4.37942949]
[1750692390188,1.04310785,2283.9,2283.3,6.36153843]
[1750692390336,10.0,2283.8,2283.3,6.36153843]
[1750692390542,11.04310785,2283.8,2283.3,6.36153843]
[1750692390942,11.04310785,2283.8,2283.4,4.3794044]
[1750692391152,11.04310785,2283.8,2283.3,6.36154668]
[1750692391668,11.04310785,2283.8,2283.3,6.36147612]
[1750692391875,11.04310785,2283.8,2283.3,6.36155378]
[1750692392179,1.04310785,2283.8,2283.4,4.37927124]
[1750692392354,11.59310785,2284.0,2283.5,4.37914785]
[1750692392559,10.93768085,2283.8,2282.9,4.8152003]
[1750692392743,10.93768085,2283.8,2283.3,9.346]
[1750692392744,13.24118672,2283.7,2283.3,9.346]
[1750692392936,12.19807887,2283.7,2283.3,9.346]
[1750692393165,12.97227887,2283.7,2283.3,13.72557356]
[1750692393440,11.0444429,2283.6,2283.3,9.346]
[1750692393637,11.0444429,2283.6,2283.3,13.7254528]
[1750692393837,10.0,2283.6,2283.3,9.346]
[1750692394275,11.04445385,2283.6,2283.3,9.346]
[1750692394473,10.0,2283.6,2283.3,9.346]
[1750692394677,1.81891661,2283.7,2283.4,4.37942817]
[1750692394840,1.81891661,2283.7,2283.3,9.346]
[1750692394841,0.7742,2283.7,2283.3,1.982]
[1750692395045,10.0,2283.4,2283.3,1.982]
[1750692395246,13.13848469,2283.4,2283.3,1.982]
[1750692395886,11.04471661,2283.4,2283.3,1.982]
[1750692396082,1.04471661,2283.4,2283.3,1.982]
[1750692396284,8.5342,2283.7,2283.3,1.982]
[1750692396285,10.0,2283.6,2283.3,1.982]
[1750692396445,1.04471661,2283.6,2283.3,6.36159427]
[1750692396768,9.57891661,2283.7,2283.3,6.36159427]
[1750692396946,10.0,2283.6,2283.3,6.36159427]
[1750692397145,11.04471661,2283.6,2283.3,1.982]
[1750692397788,10.0,2283.4,2283.3,1.982]
[1750692397973,11.04471661,2283.4,2283.3,1.982]
[1750692398882,1.3375,2283.3,2282.4,9.34]
[1750692399046,18.80471661,2283.4,2282.4,9.34]
[1750692399047,10.55,2283.0,2282.4,1.982]
[1750692399246,10.0,2282.6,2282.4,1.982]
[1750692399461,11.04593604,2282.6,2282.4,1.982]
[1750692399693,11.04593604,2282.6,2282.2,0.2213009]
[1750692399857,24.50217411,2282.3,2282.2,0.2213009]
[1750692400083,11.04593604,2282.3,2282.2,0.2213009]
[1750692400280,10.0,2282.3,2282.2,0.2213009]
[1750692401789,11.0,2282.3,2282.2,0.2213009]
[1750692401985,12.3563,2282.3,2282.2,0.2213009]
[1750692402302,13.4026798,2282.3,2282.2,0.2213009]
[1750692403607,12.8526798,2282.3,2282.2,0.2213009]
[1750692403905,11.8526798,2282.3,2282.2,0.2213009]
[1750692404879,10.8063,2282.3,2282.2,0.2213009]
[1750692405092,11.3563,2282.3,2282.2,0.2213009]
[1750692405408,12.4026798,2282.3,2282.2,0.2213009]
[1750692406881,12.4026798,2282.3,2282.2,1e-08]
[1750692407081,15.52044549,2282.3,2282.2,1e-08]
[1750692408826,10.55,2282.2,2281.7,0.25763227]
[1750692408980,21.51299413,2281.8,2281.7,0.25763227]
[1750692409814,10.0,2281.8,2281.7,0.25763227]
[1750692410031,1.25308297,2282.5,2281.7,0.25763227]
[1750692410232,0.8131,2282.5,2281.8,11.75144439]
[1750692410502,0.8131,2282.5,2282.0,4.3820729]
[1750692410761,0.8131,2282.5,2282.0,0.7626]
[1750692410898,10.8131,2282.5,2282.0,0.7626]
[1750692411092,10.8131,2282.5,2282.1,1.981]
[1750692411313,13.03384195,2282.5,2282.1,1.981]
[1750692411563,10.55,2282.2,2281.8,1.981]
[1750692411726,3.03384195,2282.5,2281.9,0.8023]
[1750692411916,11.51299413,2282.4,2281.8,1.981]
[1750692412115,10.0,2282.3,2281.7,1.04263227]
[1750692412356,10.0,2282.3,2281.8,9.36]
[1750692413655,10.0,2282.3,2281.9,4.38218382]
[1750692413955,10.0,2282.3,2281.8,9.36]
[1750692414159,10.0,2282.3,2281.7,1.04263227]
[1750692414313,13.17760941,2282.3,2281.8,9.359]
[1750692415014,0.55,2282.2,2281.8,9.359]
[1750692415250,0.55,2282.2,2281.9,9.362]
[1750692415654,0.55,2282.2,2281.7,1.04263227]
[1750692415827,0.55,2282.2,2281.8,9.359]
[1750692416030,0.55,2282.2,2281.8,13.74147034]
[1750692416245,10.0,2282.3,2281.9,13.74021005]
[1750692416448,10.0,2282.3,2281.8,4.38243963]
[1750692416656,10.0,2282.3,2281.7,1.04263227]
[1750692416657,10.0,2282.3,2281.7,5.42523508]
[1750692416827,10.0,2282.3,2281.7,5.42526341]
[1750692417028,12.01788674,2282.3,2281.7,5.42518002]
[1750692417350,12.01788674,2282.3,2281.7,5.42523822]
[1750692417929,12.01788674,2282.3,2281.8,4.38247586]
[1750692418128,12.01788674,2282.3,2281.7,5.42521876]
[1750692419163,12.01788674,2282.3,2281.7,5.42522008]
[1750692419530,2.84808809,2282.2,2281.7,1.04263227]
[1750692420265,10.0,2282.3,2281.8,4.38241932]
[1750692420463,17.76,2282.3,2281.8,4.38241932]
[1750692420763,17.76,2282.3,2281.7,5.42527197]
[1750692420764,17.76,2282.3,2281.7,1.04263227]
[1750692420949,10.0,2282.0,2281.7,1.04263227]
[1750692421355,10.7822,2282.0,2281.7,0.25763227]
[1750692421663,10.7822,2282.0,2281.7,4.64031238]
[1750692421971,10.0,2282.2,2281.9,0.7873]
[1750692422376,12.92729941,2282.2,2281.7,0.25763227]
[1750692422675,10.0,2281.9,2281.7,0.25763227]
[1750692423028,19.1012,2281.8,2281.7,0.25763227]
[1750692423371,1.3506,2281.7,2281.1,1.981]
[1750692423575,0.55,2281.3,2281.1,1.981]
[1750692423885,0.55,2281.3,2280.2,4.38557115]
[1750692423886,1.3506,2281.1,2280.2,0.8044]
[1750692424034,10.0,2280.6,2280.3,1.981]